fUSD/lending_fUSD_20260118
["ID","MTS","AMOUNT","RATE_DAILY","PERIOD"]
[402658047,1768758632294,-236.07249238,0.00015434,2]
[402658048,1768758632306,-867.29465335,0.00015434,2]
[402658049,1768758632320,-1687.99285427,0.00015434,2]
[402658050,1768758632330,-407.38,0.00015442,2]
[402658051,1768758632340,-319.78920686,0.0001549,2]
[402658052,1768758632352,-200.0,0.00015537,2]
[402658053,1768758632362,-166.66,0.00015639,2]
[402658054,1768758632371,-828.56,0.00015798,2]
[402658055,1768758632381,-213.7115,0.00015873,2]
[402658056,1768758632392,-166.66,0.00015968,2]
[402658057,1768758632403,-500.0,0.00015973,2]
[402658058,1768758632414,-315.54641887,0.00015973,2]
[402658059,1768758632437,-184.45358113,0.00015973,2]
[402658060,1768758632448,-500.0,0.00015973,2]
[402658061,1768758632457,-392.66974795,0.00016,2]
[402658062,1768758632473,-473.32,0.00016,2]
[402658081,1768758632813,-339.75260614,0.00016,2]
[402658082,1768758632830,-276.65889505,0.00016,2]
[402658083,1768758632841,-823.40052006,0.00016,2]
[402658084,1768758632850,-645.27004072,0.00016008,2]
[402658085,1768758632865,-258.20010086,0.00016008,2]
[402658086,1768758632875,-974.17884844,0.00016008,2]
[402658087,1768758632886,-756.71092669,0.00016008,2]
[402658091,1768758638463,-1931.45747354,0.00016008,2]
[402658092,1768758638475,-581.1401268,0.00016008,2]
[402658142,1768758640513,-4247.0,0.00016008,2]
[402658143,1768758640697,-405.24151721,0.00016008,2]
[402658144,1768758640708,-2252.116433,0.00016008,2]
[402658145,1768758640719,-6864.58965026,0.00016008,2]
[402658146,1768758640730,-6337.46666877,0.00016008,2]
[402658147,1768758640742,-974746.62821371,0.00016008,2]
[402658148,1768758640751,-300.0,0.00016106,2]
[402658149,1768758640761,-596.448,0.00016107,2]
[402658150,1768758640771,-16105.6135,0.00016108,2]
[402658151,1768758640781,-500.0,0.00016197,2]
[402658152,1768758640790,-500.0,0.00016197,2]
[402658153,1768758640799,-500.0,0.00016197,2]
[402658154,1768758640809,-500.0,0.00016197,2]
[402658155,1768758640818,-500.0,0.00016197,2]
[402658156,1768758640827,-500.0,0.00016197,2]
[402658157,1768758640837,-500.0,0.00016197,2]
[402658158,1768758640845,-452.57663442,0.00016197,2]
[402658159,1768758640855,-500.0,0.00016197,2]
[402658160,1768758640864,-500.0,0.00016197,2]
[402658161,1768758640874,-500.0,0.00016197,2]
[402658162,1768758640883,-732.24,0.00016197,2]
[402658163,1768758640893,-751.96021816,0.00016198,2]
[402658164,1768758640902,-150.00000001,0.000162,2]
[402658165,1768758640911,-170.07062779,0.00016207,2]
[402658166,1768758640921,-500.0,0.00016207,2]
[402658167,1768758640931,-446.82080479,0.00016207,2]
[402658168,1768758640940,-500.0,0.00016208,2]
[402658169,1768758640949,-500.0,0.00016208,2]
[402658170,1768758640960,-150.0,0.00016208,2]
[402658171,1768758640969,-500.0,0.00016208,2]
[402658172,1768758640979,-166.66,0.00016298,2]
[402658173,1768758640988,-751.96021815,0.00016387,2]
[402658174,1768758640998,-161.19,0.00016426,2]
[402658175,1768758641007,-500.0,0.00016438,2]
[402658176,1768758641016,-258.06452805,0.00016438,2]
[402658177,1768758641026,-500.0,0.00016438,2]
[402658178,1768758641036,-500.0,0.00016438,2]
[402658179,1768758641045,-500.0,0.00016438,2]
[402658180,1768758641055,-500.0,0.00016438,2]
[402658181,1768758641064,-500.0,0.00016438,2]
[402658182,1768758641073,-500.0,0.00016438,2]
[402658183,1768758641083,-732.24,0.00016471,2]
[402658184,1768758641093,-751.96021815,0.00016576,2]
[402658185,1768758641102,-828.56,0.00016588,2]
[402658186,1768758641112,-166.66,0.00016627,2]
[402658187,1768758641121,-732.24,0.00016745,2]
[402658188,1768758641131,-751.96021815,0.00016765,2]
[402658189,1768758641140,-500.0,0.00016856,7]
[402658190,1768758641150,-500.0,0.00016856,7]
[402658191,1768758641160,-700.0,0.00016856,7]
[402658192,1768758641169,-224.55,0.00016896,2]
[402658193,1768758641179,-300.0,0.00016933,2]
[402658194,1768758641188,-300.0,0.00016933,2]
[402658195,1768758641198,-600.0,0.00016933,2]
[402658196,1768758641207,-250.0,0.00016933,2]
[402658197,1768758641217,-751.96021815,0.00016954,2]
[402658198,1768758641226,-166.66,0.00016956,2]
[402658199,1768758641236,-1000.0,0.00016973,2]
[402658200,1768758641245,-600.0,0.00016986,2]
[402658201,1768758641257,-250.0,0.00016986,2]
[402658202,1768758641266,-268.76298738,0.00016986,2]
[402658203,1768758641276,-250.0,0.00016986,2]
[402658204,1768758641286,-250.0,0.00017,2]
[402658205,1768758641295,-732.24,0.00017019,2]
[402658206,1768758641304,-200.0,0.0001704,2]
[402658207,1768758641313,-1000.0,0.00017051,2]
[402658208,1768758641323,-1999.0,0.00017099,2]
[402658209,1768758641332,-574.12855637,0.00017099,2]
[402658210,1768758641342,-751.96021815,0.00017144,2]
[402658211,1768758641351,-200.0,0.00017194,2]
[402658212,1768758641364,-168.0,0.00017276,2]
[402658213,1768758641373,-168.0,0.00017285,2]
[402658214,1768758641383,-166.66,0.00017285,2]
[402658215,1768758641392,-732.24,0.00017293,2]
[402658216,1768758641402,-168.0,0.00017319,2]
[402658217,1768758641411,-751.96021815,0.00017333,2]
[402658218,1768758641420,-168.0,0.00017362,2]
[402658219,1768758641430,-407.38,0.00017372,2]
[402658220,1768758641439,-828.56,0.00017377,2]
[402658221,1768758641448,-2000.0,0.000175,2]
[402658222,1768758641457,-751.96021815,0.00017522,2]
[402658223,1768758641466,-266.59293315,0.00017523,2]
[402658224,1768758641475,-1000.0,0.00017534,2]
[402658225,1768758641485,-732.24,0.00017567,2]
[402658226,1768758641495,-420.0,0.00017607,2]
[402658227,1768758641504,-1000.0,0.0001761,2]
[402658228,1768758641514,-188.41126159,0.0001764,2]
[402658229,1768758641523,-595.37131296,0.00017647,2]
[402658230,1768758641532,-500.0,0.00017699,2]
[402658231,1768758641541,-150.0,0.00017699,2]
[402658232,1768758641551,-150.0,0.00017699,2]
[402658233,1768758641560,-151.0211484,0.00017699,2]
[402658234,1768758641570,-150.0,0.00017699,2]
[402658235,1768758641579,-150.0,0.00017699,2]
[402658236,1768758641589,-153.00604463,0.00017699,2]
[402658237,1768758641598,-150.0,0.00017699,2]
[402658238,1768758641607,-751.96021815,0.00017711,2]
[402658239,1768758641615,-168.0,0.00017714,2]
[402658240,1768758641626,-207.40946908,0.0001775,2]
[402658241,1768758641637,-310.2721614,0.0001775,2]
[402658242,1768758641647,-419.7996,0.0001775,2]
[402658243,1768758641656,-500.0,0.00017754,2]
[402658244,1768758641666,-150.0,0.00017754,2]
[402658245,1768758641675,-150.0,0.00017754,2]
[402658246,1768758641684,-150.0,0.00017754,2]
[402658247,1768758641694,-150.0,0.00017754,2]
[402658248,1768758641704,-150.0,0.00017754,2]
[402658249,1768758641713,-168.0,0.00017808,2]
[402658250,1768758641722,-500.0,0.00017808,2]
[402658251,1768758641732,-1000.0,0.00017808,2]
[402658252,1768758641741,-607.0,0.00017809,2]
[402658253,1768758641751,-150.0,0.00017809,2]
[402658254,1768758641764,-200.0,0.00017809,2]
[402658255,1768758641774,-200.0,0.00017809,2]
[402658256,1768758641784,-201.86548223,0.00017809,2]
[402658257,1768758641794,-150.0,0.00017809,2]
[402658258,1768758641804,-246.10069,0.0001782,2]
[402658259,1768758641815,-168.0,0.00017828,2]
[402658260,1768758641824,-151.0,0.00017835,2]
[402658261,1768758641834,-732.24,0.00017841,2]
[402658262,1768758641843,-200.0,0.00017856,2]
[402658263,1768758641852,-500.0,0.00017863,2]
[402658264,1768758641864,-3265.53,0.00017863,7]
[402658265,1768758641874,-3265.53,0.00017863,7]
[402658266,1768758641884,-3265.53,0.00017863,7]
[402658267,1768758641893,-3265.53,0.00017863,7]
[402658268,1768758641902,-150.50394088,0.00017863,2]
[402658269,1768758641912,-150.0,0.00017863,2]
[402658270,1768758641923,-151.0,0.0001789,2]
[402658271,1768758641932,-8305.2966,0.000179,2]
[402658272,1768758641943,-1266.51219315,0.000179,2]
[402658273,1768758641953,-751.96021815,0.000179,2]
[402658274,1768758641963,-155.4707016,0.000179,2]
[402658275,1768758641974,-155.47070152,0.000179,2]
[402658276,1768758641983,-155.47070152,0.000179,2]
[402658277,1768758641993,-155.47070152,0.000179,2]
[402658278,1768758642003,-155.47070152,0.000179,2]
[402658279,1768758642012,-155.47070152,0.000179,2]
[402658280,1768758642022,-155.47070152,0.000179,2]
[402658281,1768758642032,-155.47070152,0.000179,2]
[402658282,1768758642041,-155.47070152,0.000179,2]
[402658283,1768758642051,-155.47070152,0.000179,2]
[402658284,1768758642061,-155.47070152,0.000179,2]
[402658285,1768758642070,-155.47070152,0.000179,2]
[402658286,1768758642080,-1000.0,0.000179,2]
[402658287,1768758642090,-5244.58242462,0.000179,2]
[402658288,1768758642099,-500.0,0.000179,2]
[402658289,1768758642109,-500.0,0.000179,2]
[402658290,1768758642118,-500.0,0.000179,2]
[402658291,1768758642128,-500.0,0.000179,2]
[402658292,1768758642137,-2330.54871604,0.000179,2]
[402658293,1768758642147,-3417.0,0.000179,2]
[402658294,1768758642157,-500.0,0.00017918,2]
[402658295,1768758642167,-246.1007,0.0001792,2]
[402658296,1768758642177,-151.0,0.00017945,2]
[402658297,1768758642187,-500.0,0.00017952,7]
[402658298,1768758642197,-500.0,0.00017952,7]
[402658299,1768758642208,-700.0,0.00017952,7]
[402658300,1768758642218,-300.0,0.0001797,2]
[402658301,1768758642228,-400.0,0.0001797,2]
[402658302,1768758642238,-500.0,0.00017972,2]
[402658303,1768758642248,-500.0,0.00017973,2]
[402658304,1768758642257,-150.0,0.00017973,2]
[402658305,1768758642267,-500.0,0.00017973,2]
[402658306,1768758642276,-500.0,0.00017973,2]
[402658307,1768758642286,-500.0,0.00017973,2]
[402658308,1768758642295,-500.0,0.00017973,2]
[402658309,1768758642304,-500.0,0.00017973,2]
[402658310,1768758642313,-150.0,0.00017973,2]
[402658311,1768758642323,-264.36852255,0.00017999,2]
[402658312,1768758642332,-338.8626754,0.00017999,2]
[402658313,1768758642342,-1004.6390653,0.00017999,2]
[402658314,1768758642353,-105164.2982926,0.00017999,2]
[402658315,1768758642363,-27886.695063,0.00017999,2]
[402658316,1768758642373,-12619.2704629,0.00017999,2]
[402658317,1768758642383,-155.0,0.00017999,2]
[402658318,1768758642392,-31026.4521049,0.00017999,2]
[402658319,1768758642402,-1718.1769375,0.00017999,2]
[402658320,1768758642412,-7718.3406257,0.00017999,2]
[402658321,1768758642421,-150.0,0.00017999,2]
[402658322,1768758642432,-1073781.19434189,0.00018,2]
[402658323,1768758642450,-486.26259834,0.00018,2]
[402658329,1768758643310,-349.38539245,0.00018,2]
[402658331,1768758643903,-158.47525773,0.00018,2]
[402658332,1768758643915,-2382.36387686,0.00018,2]
[402658333,1768758643929,-2175.26385593,0.00018,2]
[402658334,1768758643941,-373.53465113,0.00018,2]
[402658337,1768758646286,-651.0,0.00018,2]
[402658338,1768758646338,-7725.5466,0.00018,2]
[402658339,1768758646349,-82056.55450866,0.00018,2]
[402658340,1768758646395,-362807.09866426,0.00018,2]
[402658341,1768758646409,-192664.13824444,0.00018,2]
[402658342,1768758646426,-223732.46139548,0.00018,2]
[402658343,1768758646440,-311.11452737,0.00018,2]
[402658344,1768758646452,-15710.44316695,0.00018,2]
[402658345,1768758646464,-33150.0,0.00018,2]
[402658346,1768758646498,-20514.44772209,0.00018,2]
[402658349,1768758667518,579.5761,0.00015294,2]
[402658350,1768759442176,2339.0,0.00027397,120]
[402658361,1768759831385,-537.267771,0.00015421,2]
[402658362,1768759831395,-374.0,0.00015499,2]
[402658363,1768759831408,-500.0,0.00015578,2]
[402658364,1768759831418,-250.0,0.00015588,2]
[402658365,1768759831428,-600.0,0.00015598,2]
[402658366,1768759831438,-164.5,0.00015618,2]
[402658367,1768759831447,-250.0,0.00015662,2]
[402658368,1768759831457,-300.0,0.00015758,2]
[402658369,1768759831466,-500.0,0.00015759,2]
[402658370,1768759831475,-500.0,0.00015759,2]
[402658371,1768759831485,-500.0,0.00015759,2]
[402658372,1768759831494,-500.0,0.00015759,2]
[402658373,1768759831503,-200.0,0.000158,5]
[402658374,1768759831513,-211710.0346544,0.00015808,2]
[402658375,1768759831524,-26076.54530152,0.00015808,2]
[402658376,1768759831535,-12401.36962607,0.00015808,2]
[402658377,1768759831547,-1627.60462382,0.00015808,2]
[402658378,1768759831562,-2354.77728136,0.00015808,2]
[402658390,1768759837575,-500.0,0.00015807,2]
[402658391,1768759837585,-140.39747628,0.00015807,2]
[402658392,1768759837597,-29.67315151,0.00015807,2]
[402658393,1768759837607,-446.82080479,0.00015807,2]
[402658394,1768759837617,-176.98147396,0.00015807,2]
[402658395,1768759837627,-177.7958074,0.00015807,2]
[402658396,1768759837637,-6.30630459,0.00015807,2]
[402658397,1768759837650,-476.81295156,0.00015807,2]
[402658398,1768759837661,-17.06249876,0.00015807,2]
[402658399,1768759837672,-500.0,0.00015807,2]
[402658400,1768759837682,-500.0,0.00015807,2]
[402658401,1768759837691,-500.0,0.00015807,2]
[402658402,1768759837702,-500.0,0.00015807,2]
[402658403,1768759837713,-500.0,0.00015807,2]
[402658404,1768759837722,-500.0,0.00015807,2]
[402658405,1768759837734,-500.0,0.00015807,2]
[402658406,1768759837743,-500.0,0.00015807,2]
[402658407,1768759837753,-500.0,0.00015807,2]
[402658408,1768759837762,-500.0,0.00015807,2]
[402658409,1768759837769,-500.0,0.00015807,2]
[402658410,1768759837778,-500.0,0.00015807,2]
[402658412,1768759837788,-302.57663442,0.00015807,2]
[402658414,1768759837797,-500.0,0.00015807,2]
[402658416,1768759837804,-563139.80778711,0.00015808,2]
[402658421,1768759839515,-378.9568,0.00015808,2]
[402658422,1768759839725,-631.42996771,0.00015808,2]
[402658423,1768759839779,-1947.3126005,0.00015808,2]
[402658424,1768759839791,-1170.495,0.00015808,2]
[402658425,1768759839889,-178561.66635751,0.00015808,2]
[402658426,1768759839899,-500.0,0.000159,5]
[402658427,1768759839909,-1389.39675701,0.00015908,2]
[402658428,1768759839922,-2330.54871604,0.00015908,2]
[402658429,1768759839931,-683.469,0.00016006,2]
[402658430,1768759839940,-732.24,0.00016007,2]
[402658431,1768759839950,-40668.85874077,0.00016007,2]
[402658432,1768759839961,-394.25300097,0.00016008,2]
[402658433,1768759839971,-500.0,0.00016008,2]
[402658434,1768759839980,-500.0,0.00016008,2]
[402658435,1768759839991,-500.0,0.00016008,2]
[402658436,1768759840002,-500.0,0.00016008,2]
[402658437,1768759840011,-150.0,0.00016008,2]
[402658438,1768759840020,-32730.9273,0.00016108,2]
[402658439,1768759840030,-1000.0,0.00016108,2]
[402658440,1768759840039,-150.0,0.000162,2]
[402658441,1768759840049,-500.0,0.000162,2]
[402658442,1768759840059,-732.24,0.00016281,2]
[402658443,1768759840068,-150.68169101,0.00016323,2]
[402658444,1768759840078,-300.0,0.00016438,2]
[402658445,1768759840087,-500.0,0.00016438,2]
[402658446,1768759840096,-500.0,0.00016438,2]
[402658447,1768759840106,-500.0,0.00016438,2]
[402658448,1768759840116,-500.0,0.00016438,2]
[402658449,1768759840125,-500.0,0.00016438,2]
[402658450,1768759840134,-392.97017045,0.00016438,2]
[402658451,1768759840145,-500.0,0.00016438,2]
[402658453,1768759840158,-500.0,0.00016438,2]
[402658455,1768759840168,-732.24,0.00016555,2]
[402658457,1768759840178,-751.96021815,0.00016639,2]
[402658459,1768759840188,-150.68169101,0.00016639,2]
[402658461,1768759840200,-195.24,0.00016652,2]
[402658463,1768759840210,-200.0,0.00016792,2]
[402658464,1768759840220,-732.24,0.00016828,2]
[402658465,1768759840231,-751.96021815,0.00016849,2]
[402658466,1768759840241,-500.0,0.00016856,7]
[402658467,1768759840251,-500.0,0.00016856,7]
[402658468,1768759840261,-700.0,0.00016856,7]
[402658469,1768759840270,-250.0,0.00016934,2]
[402658470,1768759840281,-150.68169101,0.00016954,2]
[402658471,1768759840291,-195.0,0.00016963,2]
[402658472,1768759840302,-250.0,0.00017,2]
[402658473,1768759840311,-268.76298738,0.00017049,2]
[402658474,1768759840321,-300.0,0.00017049,2]
[402658475,1768759840331,-751.96021815,0.00017059,2]
[402658476,1768759840340,-1999.0,0.00017099,2]
[402658477,1768759840350,-574.12855637,0.00017099,2]
[402658478,1768759840360,-732.24,0.00017102,2]
[402658479,1768759840369,-757.0,0.00017102,2]
[402658480,1768759840378,-600.0,0.00017136,2]
[402658481,1768759840389,-250.0,0.00017136,2]
[402658482,1768759840399,-200.0,0.00017144,2]
[402658483,1768759840408,-200.0,0.00017146,2]
[402658484,1768759840418,-164.5,0.0001718,2]
[402658485,1768759840427,-757.0,0.00017186,2]
[402658486,1768759840437,-166.67,0.00017194,2]
[402658487,1768759840447,-800.0,0.000172,6]
[402658488,1768759840456,-420.0,0.00017233,2]
[402658489,1768759840466,-1000.0,0.0001726,2]
[402658490,1768759840475,-751.96021815,0.00017269,2]
[402658491,1768759840484,-150.68169101,0.00017269,2]
[402658492,1768759840494,-1100.0,0.000173,6]
[402658493,1768759840503,-168.0,0.0001736,2]
[402658494,1768759840513,-732.24,0.00017376,2]
[402658495,1768759840522,-1300.0,0.000174,6]
[402658496,1768759840532,-751.96021815,0.0001748,2]
[402658497,1768759840541,-757.0,0.00017492,2]
[402658498,1768759840551,-2000.0,0.000175,2]
[402658499,1768759840560,-1000.0,0.000175,2]
[402658500,1768759840569,-200.0,0.000175,6]
[402658501,1768759840578,-1000.0,0.00017534,2]
[402658502,1768759840587,-150.0,0.00017535,2]
[402658503,1768759840597,-500.0,0.00017535,2]
[402658504,1768759840606,-500.0,0.00017535,2]
[402658505,1768759840615,-150.0,0.00017535,2]
[402658506,1768759840624,-150.0,0.00017535,2]
[402658507,1768759840633,-151.0211484,0.00017535,2]
[402658508,1768759840643,-150.0,0.00017535,2]
[402658509,1768759840652,-150.0,0.00017535,2]
[402658510,1768759840662,-207.40946908,0.00017583,2]
[402658511,1768759840671,-310.2721614,0.00017583,2]
[402658512,1768759840680,-419.7996,0.00017583,2]
[402658513,1768759840690,-150.68169101,0.00017585,2]
[402658514,1768759840699,-150.0,0.0001759,2]
[402658515,1768759840708,-501.86548223,0.0001759,2]
[402658516,1768759840718,-500.0,0.0001759,2]
[402658517,1768759840728,-153.00604463,0.0001759,2]
[402658518,1768759840737,-150.0,0.0001759,2]
[402658519,1768759840747,-150.0,0.0001759,2]
[402658520,1768759840756,-150.0,0.0001759,2]
[402658521,1768759840766,-200.0,0.000176,6]
[402658522,1768759840775,-1353.22599146,0.0001764,2]
[402658523,1768759840785,-150.0,0.00017645,2]
[402658524,1768759840794,-607.0,0.00017645,2]
[402658525,1768759840804,-150.0,0.00017645,2]
[402658526,1768759840814,-200.0,0.00017645,2]
[402658527,1768759840823,-200.0,0.00017645,2]
[402658528,1768759840833,-595.37131296,0.00017647,2]
[402658529,1768759840843,-732.24,0.0001765,2]
[402658530,1768759840853,-151.0,0.00017675,2]
[402658531,1768759840862,-751.96021815,0.0001769,2]
[402658532,1768759841116,-150.50394088,0.00017699,2]
[402658533,1768759841131,-150.0,0.00017699,2]
[402658534,1768759841141,-200.0,0.000177,6]
[402658535,1768759841150,-151.0,0.0001773,2]
[402658536,1768759841160,-150.0,0.00017754,2]
[402658537,1768759841169,-200.0,0.00017768,2]
[402658538,1768759841179,-151.0,0.00017784,2]
[402658539,1768759841189,-1000.0,0.000178,2]
[402658540,1768759841198,-200.0,0.000178,6]
[402658541,1768759841209,-500.0,0.00017808,2]
[402658542,1768759841218,-1000.0,0.00017808,2]
[402658543,1768759841228,-25000.0,0.00017826,3]
[402658544,1768759841238,-151.0,0.00017838,2]
[402658545,1768759841248,-216.59293315,0.00017847,2]
[402658546,1768759841258,-200.0,0.00017856,2]
[402658547,1768759841268,-500.0,0.00017863,2]
[402658548,1768759841277,-3265.53,0.00017863,7]
[402658549,1768759841287,-3265.53,0.00017863,7]
[402658550,1768759841296,-3265.53,0.00017863,7]
[402658551,1768759841305,-3265.53,0.00017863,7]
[402658552,1768759841315,-151.0,0.00017892,2]
[402658553,1768759841324,-8305.2966,0.000179,2]
[402658554,1768759841334,-751.96021815,0.000179,2]
[402658555,1768759841343,-869.0,0.000179,6]
[402658556,1768759841353,-150.68169101,0.000179,2]
[402658557,1768759841362,-155.4707016,0.000179,2]
[402658558,1768759841371,-155.47070152,0.000179,2]
[402658559,1768759841381,-155.47070152,0.000179,2]
[402658560,1768759841390,-155.47070152,0.000179,2]
[402658561,1768759841400,-155.47070152,0.000179,2]
[402658562,1768759841410,-155.47070152,0.000179,2]
[402658563,1768759841419,-1266.51219315,0.000179,2]
[402658564,1768759841428,-155.47070152,0.000179,2]
[402658565,1768759841437,-155.47070152,0.000179,2]
[402658566,1768759841446,-155.47070152,0.000179,2]
[402658567,1768759841455,-155.47070152,0.000179,2]
[402658568,1768759841464,-155.47070152,0.000179,2]
[402658569,1768759841473,-155.47070152,0.000179,2]
[402658570,1768759841482,-5244.58242462,0.000179,2]
[402658571,1768759841491,-3417.0,0.000179,2]
[402658572,1768759841500,-500.0,0.00017918,2]
[402658573,1768759841510,-732.31320039,0.00017924,2]
[402658574,1768759841519,-151.0,0.00017946,2]
[402658575,1768759841528,-500.0,0.00017952,7]
[402658576,1768759841538,-500.0,0.00017952,7]
[402658577,1768759841547,-700.0,0.00017952,7]
[402658578,1768759841556,-168.0,0.00017961,2]
[402658579,1768759841566,-300.0,0.0001797,2]
[402658580,1768759841575,-400.0,0.0001797,2]
[402658581,1768759841584,-500.0,0.00017972,2]
[402658582,1768759841594,-500.0,0.00017973,2]
[402658583,1768759841604,-500.0,0.00017973,2]
[402658584,1768759841613,-150.0,0.00017973,2]
[402658585,1768759841622,-500.0,0.00017973,2]
[402658586,1768759841632,-500.0,0.00017973,2]
[402658587,1768759841641,-500.0,0.00017973,2]
[402658588,1768759841651,-500.0,0.00017973,2]
[402658589,1768759841661,-150.0,0.00017973,2]
[402658590,1768759841670,-1016.92674662,0.0001799,2]
[402658591,1768759841679,-264.36852255,0.00017999,2]
[402658592,1768759841688,-52345.499221,0.00017999,2]
[402658593,1768759841697,-11529.6656743,0.00017999,2]
[402658594,1768759841707,-155.0,0.00017999,2]
[402658595,1768759841716,-164.3151098,0.00017999,2]
[402658596,1768759841725,-83406.0023539,0.00017999,2]
[402658597,1768759841735,-17388.2642333,0.00017999,2]
[402658598,1768759841743,-22547.5374093,0.00017999,2]
[402658599,1768759841754,-3280.6808393,0.00017999,2]
[402658600,1768759841763,-5978.990117,0.00017999,2]
[402658601,1768759841773,-6652.1633374,0.00017999,2]
[402658602,1768759841782,-150.00000001,0.00018,2]
[402658603,1768759841791,-796745.27126375,0.00018,2]
[402658611,1768759842555,-863.40348,0.00018,2]
[402658612,1768759842765,-3394.49313406,0.00018,2]
[402658626,1768759845443,-4800.91142308,0.000158,2]
[402658627,1768759845454,-759.62696406,0.000158,2]
[402658631,1768760073771,154.25,0.00013193,2]
[402658632,1768760505976,1472.21,0.00013404,2]
[402658634,1768760678221,166.66,0.00014493,2]
[402658635,1768760678471,166.66,0.00014798,2]
[402658636,1768760678673,166.66,0.00015103,2]
[402658637,1768760684383,169.6649015,0.00015086,2]
[402658638,1768760684403,644.6950985,0.00015086,2]
[402658639,1768760905962,2734.72061655,0.0001,2]
[402658640,1768760920790,6620.58428495,0.00014855,2]
[402658641,1768760920812,10000.0,0.00014855,2]
[402658642,1768760920833,10000.0,0.00014855,2]
[402658643,1768760920856,10000.0,0.00014855,2]
[402658644,1768760920876,1363.42571505,0.00014855,2]
[402658645,1768760921296,186.7209297,0.00014,2]
[402658646,1768761011765,1000.0,0.00014824,2]
[402658661,1768761032549,-278.0,0.00015408,2]
[402658662,1768761032559,-166.66,0.00015408,2]
[402658663,1768761032569,-904.95288932,0.00015479,2]
[402658664,1768761032580,-782.76857672,0.00015479,2]
[402658665,1768761032591,-426.83436047,0.00015479,2]
[402658666,1768761032603,-385.44417349,0.00015479,2]
[402658667,1768761032612,-150.60266651,0.000155,2]
[402658668,1768761032627,-942.98264661,0.000155,2]
[402658669,1768761032637,-155.21677592,0.0001555,2]
[402658670,1768761032646,-195.0,0.0001555,2]
[402658671,1768761032656,-129.43957321,0.0001555,2]
[402658672,1768761032668,-120.56042679,0.0001555,2]
[402658673,1768761032677,-1389.39675701,0.00015592,2]
[402658674,1768761032688,-300.0,0.00015606,2]
[402658675,1768761032697,-300.0,0.00015607,2]
[402658676,1768761032707,-300.0,0.00015607,2]
[402658677,1768761032717,-1200.0,0.00015607,2]
[402658678,1768761032726,-300.0,0.00015607,2]
[402658679,1768761032735,-291.69805165,0.00015608,2]
[402658680,1768761032758,-54110.5950408,0.00015608,2]
[402658681,1768761032769,-894.1795612,0.00015608,2]
[402658682,1768761032781,-81656.72920109,0.00015608,2]
[402658683,1768761032796,-1246.6739757,0.00015608,2]
[402658684,1768761032807,-459.25366329,0.00015608,2]
[402658686,1768761037697,-500.0,0.00015607,2]
[402658687,1768761037707,-418.27545139,0.00015607,2]
[402658688,1768761037716,-500.0,0.00015607,2]
[402658689,1768761037966,-255.84184827,0.00015607,2]
[402658690,1768761037987,-45411.09525154,0.00015608,2]
[402658691,1768761037999,-5778.20325848,0.00015608,2]
[402658693,1768761038018,-19845.24128045,0.00015608,2]
[402658700,1768761038190,-96299.32598002,0.00015608,2]
[402658709,1768761039665,-312.66673578,0.00015608,2]
[402658710,1768761039676,-1200.0,0.00015692,2]
[402658711,1768761039686,-226.47,0.000157,2]
[402658712,1768761039697,-4680.41246754,0.00015708,2]
[402658713,1768761039707,-2500.0,0.00015708,2]
[402658714,1768761039718,-2330.54871604,0.00015708,2]